[Event "Titled Tuesday Blitz February 14 Late 2023"]
[White "Bortnyk, Olexandr"]
[Black "Domingo Nunez, Ruben"]
[WhiteFideId "14120828"]
[BlackFideId "22245570"]
[WhiteElo "2605"]
[BlackElo "2416"]
[Result "1-0"]
[Round "02"]
[TimeControl "180+2"]
[Date "2023.02.14"]
[WhiteClock "0:00:34"]
[BlackClock "0:00:06"]

1. d4 {[%clk 0:03:00]}  Nf6 {[%clk 0:02:58]} 2. Nc3 {[%clk 0:03:00]}  d5 {[%clk 0:02:58]} 3. Bf4 {[%clk 0:03:00]}  a6 {[%clk 0:02:59]} 4. e3 {[%clk 0:03:00]}  c5 {[%clk 0:02:57]} 5. dxc5 {[%clk 0:03:01]}  e6 {[%clk 0:02:57]} 6. Na4 {[%clk 0:03:00]}  Qa5+ {[%clk 0:02:53]} 7. c3 {[%clk 0:02:59]}  Nc6 {[%clk 0:02:52]} 8. Nb6 {[%clk 0:02:47]}  e5 {[%clk 0:02:52]} 9. b4 {[%clk 0:02:35]}  Nxb4 {[%clk 0:02:50]} 10. cxb4 {[%clk 0:02:36]}  Qxb4+ {[%clk 0:02:51]} 11. Qd2 {[%clk 0:02:36]}  Bxc5 {[%clk 0:02:30]} 12. Nxa8 {[%clk 0:02:27]}  exf4 {[%clk 0:02:30]} 13. Qxb4 {[%clk 0:02:02]}  Bxb4+ {[%clk 0:02:31]} 14. Ke2 {[%clk 0:02:02]}  fxe3 {[%clk 0:02:26]} 15. fxe3 {[%clk 0:02:03]}  Ba5 {[%clk 0:02:27]} 16. Nf3 {[%clk 0:01:56]}  Bd7 {[%clk 0:02:24]} 17. Rc1 {[%clk 0:01:54]}  Ke7 {[%clk 0:02:18]} 18. Nc7 {[%clk 0:01:52]}  Rc8 {[%clk 0:02:19]} 19. Nxd5+ {[%clk 0:01:52]}  Nxd5 {[%clk 0:02:19]} 20. Rxc8 {[%clk 0:01:51]}  Bxc8 {[%clk 0:02:20]} 21. Kf2 {[%clk 0:01:50]}  Bb6 {[%clk 0:02:15]} 22. Nd4 {[%clk 0:01:50]}  Nc3 {[%clk 0:02:12]} 23. Bc4 {[%clk 0:01:39]}  Ne4+ {[%clk 0:02:13]} 24. Ke2 {[%clk 0:01:39]}  Bg4+ {[%clk 0:02:12]} 25. Nf3 {[%clk 0:01:40]}  Nc3+ {[%clk 0:02:06]} 26. Kd3 {[%clk 0:01:39]}  Na4 {[%clk 0:02:06]} 27. Rc1 {[%clk 0:01:27]}  Bd7 {[%clk 0:02:00]} 28. Ke2 {[%clk 0:01:24]}  Nb2 {[%clk 0:01:59]} 29. Ne5 {[%clk 0:01:16]}  Be8 {[%clk 0:01:54]} 30. Rb1 {[%clk 0:01:15]}  Na4 {[%clk 0:01:28]} 31. Kf2 {[%clk 0:01:15]}  f6 {[%clk 0:01:24]} 32. Nd3 {[%clk 0:01:15]}  Bc6 {[%clk 0:01:22]} 33. Nb4 {[%clk 0:01:14]}  Be4 {[%clk 0:01:22]} 34. Nd5+ {[%clk 0:01:10]}  Kd6 {[%clk 0:01:12]} 35. Nxb6 {[%clk 0:01:10]}  Bxb1 {[%clk 0:01:12]} 36. Nxa4 {[%clk 0:01:10]}  b5 {[%clk 0:01:13]} 37. Nc3 {[%clk 0:01:10]}  Bc2 {[%clk 0:00:55]} 38. Bg8 {[%clk 0:01:06]}  b4 {[%clk 0:00:54]} 39. Ne2 {[%clk 0:01:06]}  a5 {[%clk 0:00:54]} 40. Nd4 {[%clk 0:01:06]}  Be4 {[%clk 0:00:53]} 41. g3 {[%clk 0:01:06]}  Bd5 {[%clk 0:00:51]} 42. Bxd5 {[%clk 0:01:02]}  Kxd5 {[%clk 0:00:52]} 43. Ke2 {[%clk 0:01:02]}  Kc4 {[%clk 0:00:48]} 44. Kd2 {[%clk 0:00:58]}  a4 {[%clk 0:00:47]} 45. Kc2 {[%clk 0:00:53]}  g6 {[%clk 0:00:44]} 46. h4 {[%clk 0:00:53]}  f5 {[%clk 0:00:43]} 47. Ne6 {[%clk 0:00:34]}  b3+ {[%clk 0:00:29]} 48. axb3+ {[%clk 0:00:35]}  axb3+ {[%clk 0:00:29]} 49. Kd2 {[%clk 0:00:35]}  Kd5 {[%clk 0:00:20]} 50. Nf8 {[%clk 0:00:35]}  Ke4 {[%clk 0:00:20]} 51. Nxh7 {[%clk 0:00:35]}  b2 {[%clk 0:00:16]} 52. Kc2 {[%clk 0:00:36]}  Kxe3 {[%clk 0:00:17]} 53. Nf8 {[%clk 0:00:36]}  Kf3 {[%clk 0:00:17]} 54. Nxg6 {[%clk 0:00:34]}  Kxg3 {[%clk 0:00:05]} 55. h5 {[%clk 0:00:35]}  f4 {[%clk 0:00:05]} 56. Nxf4 {[%clk 0:00:34]}  Kxf4 {[%clk 0:00:06]} 57. h6 {[%clk 0:00:34]}  Kg5 {[%clk 0:00:06]} 58. h7 {[%clk 0:00:35]}  Kg6 {[%clk 0:00:06]} 59. h8=Q {[%clk 0:00:35]}  b1=Q+ {[%clk 0:00:06]} 60. Kxb1 {[%clk 0:00:34]} 1-0


[Site "https://www.chess.com"]

[Event "Titled Tuesday Blitz February 14 Late 2023"]
[White "Terry, Renato"]
[Black "Alvarez Calzadilla, Jose Avelino"]
[WhiteFideId "3803457"]
[BlackFideId "3526151"]
[WhiteElo "2520"]
[BlackElo "2386"]
[Result "1-0"]
[Round "02"]
[TimeControl "180+2"]
[Date "2023.02.14"]
[WhiteClock "0:00:32"]
[BlackClock "0:00:08"]

1. d4 {[%clk 0:02:58]}  Nf6 {[%clk 0:02:57]} 2. Nf3 {[%clk 0:02:58]}  d5 {[%clk 0:02:56]} 3. c4 {[%clk 0:02:58]}  e6 {[%clk 0:02:56]} 4. Nbd2 {[%clk 0:02:53]}  Be7 {[%clk 0:02:50]} 5. b3 {[%clk 0:02:51]}  O-O {[%clk 0:02:50]} 6. Bb2 {[%clk 0:02:51]}  b6 {[%clk 0:02:50]} 7. g3 {[%clk 0:02:50]}  Bb7 {[%clk 0:02:50]} 8. Bg2 {[%clk 0:02:50]}  Nbd7 {[%clk 0:02:46]} 9. O-O {[%clk 0:02:50]}  c5 {[%clk 0:02:46]} 10. cxd5 {[%clk 0:02:38]}  Nxd5 {[%clk 0:02:32]} 11. Rc1 {[%clk 0:02:33]}  Rc8 {[%clk 0:02:26]} 12. dxc5 {[%clk 0:02:29]}  Rxc5 {[%clk 0:02:19]} 13. Nc4 {[%clk 0:02:17]}  N7f6 {[%clk 0:02:05]} 14. Nd4 {[%clk 0:02:10]}  Qa8 {[%clk 0:01:55]} 15. e4 {[%clk 0:02:01]}  Nb4 {[%clk 0:01:23]} 16. a3 {[%clk 0:02:00]}  Na6 {[%clk 0:01:18]} 17. b4 {[%clk 0:01:56]}  Rcc8 {[%clk 0:01:16]} 18. f3 {[%clk 0:01:49]}  Rfd8 {[%clk 0:01:14]} 19. Qe2 {[%clk 0:01:48]}  Nb8 {[%clk 0:01:06]} 20. Rfd1 {[%clk 0:01:42]}  Nc6 {[%clk 0:01:04]} 21. Nc2 {[%clk 0:01:26]}  Rxd1+ {[%clk 0:01:02]} 22. Rxd1 {[%clk 0:01:26]}  Rd8 {[%clk 0:00:49]} 23. Bf1 {[%clk 0:01:24]}  Rxd1 {[%clk 0:00:48]} 24. Qxd1 {[%clk 0:01:24]}  Qd8 {[%clk 0:00:48]} 25. Qe1 {[%clk 0:01:24]}  Qc7 {[%clk 0:00:36]} 26. Qc3 {[%clk 0:01:17]}  Nb8 {[%clk 0:00:30]} 27. Qd2 {[%clk 0:01:14]}  Nbd7 {[%clk 0:00:27]} 28. Nd4 {[%clk 0:01:14]}  a6 {[%clk 0:00:20]} 29. Be2 {[%clk 0:01:11]}  b5 {[%clk 0:00:19]} 30. Na5 {[%clk 0:01:12]}  Ba8 {[%clk 0:00:18]} 31. Ndb3 {[%clk 0:01:02]}  h6 {[%clk 0:00:17]} 32. Bd4 {[%clk 0:01:02]}  Nb6 {[%clk 0:00:17]} 33. Nc5 {[%clk 0:00:58]}  Bxc5 {[%clk 0:00:12]} 34. Bxc5 {[%clk 0:00:59]}  Na4 {[%clk 0:00:12]} 35. Bd4 {[%clk 0:00:56]}  Nb6 {[%clk 0:00:11]} 36. Nb3 {[%clk 0:00:55]}  Nbd7 {[%clk 0:00:10]} 37. Kg2 {[%clk 0:00:43]}  Ne8 {[%clk 0:00:11]} 38. Nc5 {[%clk 0:00:38]}  Nxc5 {[%clk 0:00:10]} 39. Bxc5 {[%clk 0:00:39]}  Nf6 {[%clk 0:00:10]} 40. Bd4 {[%clk 0:00:31]}  Nd7 {[%clk 0:00:10]} 41. Qb2 {[%clk 0:00:31]}  f6 {[%clk 0:00:09]} 42. Qb3 {[%clk 0:00:29]}  Qd6 {[%clk 0:00:05]} 43. Be3 {[%clk 0:00:29]}  Kh8 {[%clk 0:00:03]} 44. a4 {[%clk 0:00:30]}  Bc6 {[%clk 0:00:03]} 45. a5 {[%clk 0:00:30]}  e5 {[%clk 0:00:02]} 46. Qc3 {[%clk 0:00:30]}  Nf8 {[%clk 0:00:02]} 47. Bc5 {[%clk 0:00:30]}  Qd8 {[%clk 0:00:02]} 48. Bxf8 {[%clk 0:00:30]}  Qxf8 {[%clk 0:00:03]} 49. Qxc6 {[%clk 0:00:31]}  Qxb4 {[%clk 0:00:04]} 50. Qxa6 {[%clk 0:00:31]}  Qd2 {[%clk 0:00:04]} 51. Qxb5 {[%clk 0:00:31]}  Kh7 {[%clk 0:00:05]} 52. a6 {[%clk 0:00:32]}  h5 {[%clk 0:00:05]} 53. a7 {[%clk 0:00:32]}  h4 {[%clk 0:00:06]} 54. a8=Q {[%clk 0:00:32]}  Qe1 {[%clk 0:00:07]} 55. gxh4 {[%clk 0:00:32]}  Qxh4 {[%clk 0:00:07]} 56. Qc8 {[%clk 0:00:32]}  Qg5+ {[%clk 0:00:08]} 57. Qg4 {[%clk 0:00:32]} 1-0


[Site "https://www.chess.com"]

[Event "Titled Tuesday Blitz February 14 Late 2023"]
[White "Sanal, Vahap"]
[Black "Vlassov, Nikolai"]
[WhiteFideId "6300545"]
[BlackFideId "4103360"]
[WhiteElo "2600"]
[BlackElo "2283"]
[Result "1-0"]
[Round "02"]
[TimeControl "180+2"]
[Date "2023.02.14"]
[WhiteClock "0:00:12"]
[BlackClock "0:00:08"]

1. Nf3 {[%clk 0:03:00]}  c5 {[%clk 0:02:59]} 2. g3 {[%clk 0:02:56]}  b6 {[%clk 0:02:58]} 3. Bg2 {[%clk 0:02:56]}  Bb7 {[%clk 0:02:59]} 4. c4 {[%clk 0:02:56]}  g6 {[%clk 0:02:59]} 5. O-O {[%clk 0:02:53]}  Bg7 {[%clk 0:02:59]} 6. Nc3 {[%clk 0:02:54]}  Nf6 {[%clk 0:02:59]} 7. d4 {[%clk 0:02:51]}  cxd4 {[%clk 0:02:58]} 8. Qxd4 {[%clk 0:02:50]}  O-O {[%clk 0:02:58]} 9. Qh4 {[%clk 0:02:50]}  d6 {[%clk 0:02:50]} 10. Bh6 {[%clk 0:02:50]}  Nbd7 {[%clk 0:02:50]} 11. Ng5 {[%clk 0:02:44]}  Bxg2 {[%clk 0:02:49]} 12. Kxg2 {[%clk 0:02:45]}  Re8 {[%clk 0:02:39]} 13. Nd5 {[%clk 0:02:33]}  Rc8 {[%clk 0:02:28]} 14. b3 {[%clk 0:02:28]}  e6 {[%clk 0:02:21]} 15. Bxg7 {[%clk 0:02:18]}  Kxg7 {[%clk 0:02:20]} 16. Nxf6 {[%clk 0:02:19]}  Nxf6 {[%clk 0:02:14]} 17. Rad1 {[%clk 0:02:19]}  Qc7 {[%clk 0:02:09]} 18. Qd4 {[%clk 0:02:10]}  Red8 {[%clk 0:01:57]} 19. Qb2 {[%clk 0:01:43]}  Qb7+ {[%clk 0:01:21]} 20. f3 {[%clk 0:01:32]}  e5 {[%clk 0:01:19]} 21. Rd2 {[%clk 0:01:23]}  h6 {[%clk 0:01:18]} 22. Nh3 {[%clk 0:01:22]}  d5 {[%clk 0:01:03]} 23. Qxe5 {[%clk 0:01:20]}  dxc4 {[%clk 0:01:03]} 24. Rxd8 {[%clk 0:01:18]}  Rxd8 {[%clk 0:01:03]} 25. bxc4 {[%clk 0:01:16]}  Qc6 {[%clk 0:00:55]} 26. Qc3 {[%clk 0:01:02]}  Kg8 {[%clk 0:00:52]} 27. Rc1 {[%clk 0:00:56]}  Rc8 {[%clk 0:00:47]} 28. Nf2 {[%clk 0:00:52]}  b5 {[%clk 0:00:37]} 29. c5 {[%clk 0:00:51]}  Nd5 {[%clk 0:00:34]} 30. Qd4 {[%clk 0:00:51]}  Re8 {[%clk 0:00:24]} 31. Ne4 {[%clk 0:00:33]}  Re6 {[%clk 0:00:24]} 32. Rd1 {[%clk 0:00:32]}  Nc7 {[%clk 0:00:20]} 33. Qd8+ {[%clk 0:00:31]}  Kg7 {[%clk 0:00:16]} 34. Rd6 {[%clk 0:00:31]}  Rxd6 {[%clk 0:00:15]} 35. cxd6 {[%clk 0:00:31]}  Ne6 {[%clk 0:00:15]} 36. Qf6+ {[%clk 0:00:31]}  Kg8 {[%clk 0:00:15]} 37. Qe5 {[%clk 0:00:22]}  Qc2 {[%clk 0:00:12]} 38. Nf6+ {[%clk 0:00:21]}  Kf8 {[%clk 0:00:11]} 39. Nd5 {[%clk 0:00:16]}  Ke8 {[%clk 0:00:09]} 40. Nf6+ {[%clk 0:00:13]}  Kd8 {[%clk 0:00:08]} 41. Qxb5 {[%clk 0:00:12]} 1-0


[Site "https://www.chess.com"]

[Event "Titled Tuesday Blitz February 14 Late 2023"]
[White "Chigaev, Maksim"]
[Black "Janaszak, Dawid"]
[WhiteFideId "4108116"]
[BlackFideId "1119206"]
[WhiteElo "2628"]
[BlackElo "2316"]
[Result "1-0"]
[Round "02"]
[TimeControl "180+2"]
[Date "2023.02.14"]
[WhiteClock "0:00:07"]
[BlackClock "0:00:09"]

1. e4 {[%clk 0:03:00]}  c5 {[%clk 0:02:56]} 2. Nf3 {[%clk 0:03:00]}  e6 {[%clk 0:02:56]} 3. g3 {[%clk 0:03:00]}  b6 {[%clk 0:02:50]} 4. Bg2 {[%clk 0:03:00]}  Bb7 {[%clk 0:02:51]} 5. Qe2 {[%clk 0:02:59]}  d6 {[%clk 0:02:50]} 6. d4 {[%clk 0:02:58]}  cxd4 {[%clk 0:02:41]} 7. Nxd4 {[%clk 0:02:59]}  Nc6 {[%clk 0:02:35]} 8. Nxc6 {[%clk 0:02:50]}  Bxc6 {[%clk 0:02:36]} 9. O-O {[%clk 0:02:50]}  Be7 {[%clk 0:02:36]} 10. Rd1 {[%clk 0:02:27]}  Qc7 {[%clk 0:02:35]} 11. c4 {[%clk 0:02:28]}  Nf6 {[%clk 0:02:34]} 12. Nc3 {[%clk 0:02:29]}  O-O {[%clk 0:02:34]} 13. Bf4 {[%clk 0:02:29]}  Nd7 {[%clk 0:02:27]} 14. Rac1 {[%clk 0:02:28]}  e5 {[%clk 0:01:58]} 15. Nd5 {[%clk 0:02:20]}  Bxd5 {[%clk 0:01:53]} 16. cxd5 {[%clk 0:02:20]}  Nc5 {[%clk 0:01:51]} 17. Be3 {[%clk 0:02:13]}  a5 {[%clk 0:01:51]} 18. b3 {[%clk 0:02:13]}  Qd8 {[%clk 0:01:39]} 19. h4 {[%clk 0:02:13]}  Rc8 {[%clk 0:01:35]} 20. Qb5 {[%clk 0:02:09]}  Rb8 {[%clk 0:01:23]} 21. a3 {[%clk 0:02:06]}  f5 {[%clk 0:01:11]} 22. exf5 {[%clk 0:02:04]}  e4 {[%clk 0:00:57]} 23. b4 {[%clk 0:01:49]}  axb4 {[%clk 0:00:57]} 24. axb4 {[%clk 0:01:49]}  Nd3 {[%clk 0:00:58]} 25. Rc6 {[%clk 0:01:44]}  Ne5 {[%clk 0:00:51]} 26. Bxe4 {[%clk 0:01:45]}  Nxc6 {[%clk 0:00:50]} 27. dxc6 {[%clk 0:01:45]}  Qc7 {[%clk 0:00:44]} 28. Bd5+ {[%clk 0:01:46]}  Kh8 {[%clk 0:00:44]} 29. Be6 {[%clk 0:01:47]}  Bf6 {[%clk 0:00:38]} 30. Bd7 {[%clk 0:01:29]}  Be5 {[%clk 0:00:37]} 31. Kg2 {[%clk 0:01:29]}  Rf7 {[%clk 0:00:24]} 32. Qd5 {[%clk 0:01:07]}  Rff8 {[%clk 0:00:23]} 33. f4 {[%clk 0:00:43]}  Bf6 {[%clk 0:00:23]} 34. Qxd6 {[%clk 0:00:43]}  Qa7 {[%clk 0:00:13]} 35. c7 {[%clk 0:00:37]}  Ra8 {[%clk 0:00:14]} 36. Qc6 {[%clk 0:00:25]}  Qa2+ {[%clk 0:00:13]} 37. Bf2 {[%clk 0:00:15]}  Qe2 {[%clk 0:00:12]} 38. Qf3 {[%clk 0:00:13]}  Qc2 {[%clk 0:00:12]} 39. c8=Q {[%clk 0:00:10]}  Raxc8 {[%clk 0:00:12]} 40. Bxc8 {[%clk 0:00:11]}  Rxc8 {[%clk 0:00:12]} 41. Qd3 {[%clk 0:00:07]}  Qb2 {[%clk 0:00:11]} 42. b5 {[%clk 0:00:06]}  h6 {[%clk 0:00:11]} 43. Rd2 {[%clk 0:00:06]}  Qa1 {[%clk 0:00:10]} 44. g4 {[%clk 0:00:05]}  Rd8 {[%clk 0:00:10]} 45. Qe2 {[%clk 0:00:04]}  Qa8+ {[%clk 0:00:10]} 46. Kg1 {[%clk 0:00:03]}  Re8 {[%clk 0:00:10]} 47. Qf1 {[%clk 0:00:03]}  Qf3 {[%clk 0:00:10]} 48. g5 {[%clk 0:00:04]}  hxg5 {[%clk 0:00:07]} 49. hxg5 {[%clk 0:00:04]}  Bc3 {[%clk 0:00:07]} 50. Rd3 {[%clk 0:00:04]}  Qg4+ {[%clk 0:00:07]} 51. Qg2 {[%clk 0:00:05]}  Qe2 {[%clk 0:00:07]} 52. Rh3+ {[%clk 0:00:05]}  Kg8 {[%clk 0:00:07]} 53. Qd5+ {[%clk 0:00:05]}  Kf8 {[%clk 0:00:07]} 54. Rh8+ {[%clk 0:00:06]}  Ke7 {[%clk 0:00:08]} 55. Rxe8+ {[%clk 0:00:06]}  Kxe8 {[%clk 0:00:08]} 56. Qe6+ {[%clk 0:00:04]}  Qxe6 {[%clk 0:00:08]} 57. fxe6 {[%clk 0:00:05]}  Bd2 {[%clk 0:00:09]} 58. f5 {[%clk 0:00:04]}  Bxg5 {[%clk 0:00:08]} 59. Kg2 {[%clk 0:00:05]}  Bd8 {[%clk 0:00:08]} 60. Kf3 {[%clk 0:00:05]}  Kf8 {[%clk 0:00:07]} 61. Ke4 {[%clk 0:00:06]}  Bc7 {[%clk 0:00:07]} 62. Kd5 {[%clk 0:00:06]}  Ke7 {[%clk 0:00:08]} 63. Bh4+ {[%clk 0:00:06]}  Ke8 {[%clk 0:00:08]} 64. Kc6 {[%clk 0:00:07]}  Be5 {[%clk 0:00:08]} 65. Kxb6 {[%clk 0:00:07]}  g5 {[%clk 0:00:09]} 66. fxg6 {[%clk 0:00:07]} 1-0


[Site "https://www.chess.com"]

[Event "Titled Tuesday Blitz February 14 Late 2023"]
[White "Poliakova, Varvara"]
[Black "Livaic, Leon"]
[WhiteFideId "13518313"]
[BlackFideId "14531534"]
[WhiteElo "2010"]
[BlackElo "2579"]
[Result "0-1"]
[Round "02"]
[TimeControl "180+2"]
[Date "2023.02.14"]
[WhiteClock "0:00:11"]
[BlackClock "0:01:04"]

1. e4 {[%clk 0:03:00]}  e6 {[%clk 0:03:00]} 2. d4 {[%clk 0:03:00]}  d5 {[%clk 0:03:00]} 3. e5 {[%clk 0:03:00]}  c5 {[%clk 0:03:00]} 4. c3 {[%clk 0:03:00]}  Nc6 {[%clk 0:03:01]} 5. Nf3 {[%clk 0:02:55]}  Bd7 {[%clk 0:03:01]} 6. a3 {[%clk 0:02:55]}  Nge7 {[%clk 0:02:59]} 7. b4 {[%clk 0:02:54]}  cxd4 {[%clk 0:03:00]} 8. cxd4 {[%clk 0:02:55]}  Nf5 {[%clk 0:03:00]} 9. Bb2 {[%clk 0:02:55]}  b5 {[%clk 0:03:01]} 10. Bxb5 {[%clk 0:02:46]}  Nxe5 {[%clk 0:03:00]} 11. Bxd7+ {[%clk 0:02:45]}  Nxd7 {[%clk 0:03:01]} 12. Nbd2 {[%clk 0:02:42]}  a5 {[%clk 0:02:56]} 13. b5 {[%clk 0:02:37]}  a4 {[%clk 0:02:54]} 14. Qe2 {[%clk 0:02:28]}  Be7 {[%clk 0:02:50]} 15. O-O {[%clk 0:02:27]}  O-O {[%clk 0:02:42]} 16. Bc3 {[%clk 0:02:19]}  Qb6 {[%clk 0:02:30]} 17. Rfb1 {[%clk 0:02:18]}  Rfc8 {[%clk 0:02:28]} 18. Qd3 {[%clk 0:02:17]}  Rc7 {[%clk 0:02:13]} 19. Bb4 {[%clk 0:02:16]}  Bxb4 {[%clk 0:02:03]} 20. Rxb4 {[%clk 0:02:17]}  h6 {[%clk 0:02:03]} 21. h3 {[%clk 0:02:16]}  Nd6 {[%clk 0:02:03]} 22. Ne5 {[%clk 0:01:56]}  Nxe5 {[%clk 0:02:04]} 23. dxe5 {[%clk 0:01:57]}  Nb7 {[%clk 0:02:00]} 24. Qd4 {[%clk 0:01:48]}  Qxd4 {[%clk 0:01:56]} 25. Rxd4 {[%clk 0:01:49]}  Rc3 {[%clk 0:01:49]} 26. Rb4 {[%clk 0:01:42]}  Nc5 {[%clk 0:01:46]} 27. b6 {[%clk 0:01:40]}  Rb8 {[%clk 0:01:46]} 28. Nf3 {[%clk 0:01:33]}  Rb3 {[%clk 0:01:32]} 29. Rb1 {[%clk 0:01:31]}  Rxb1+ {[%clk 0:01:30]} 30. Rxb1 {[%clk 0:01:31]}  Nb3 {[%clk 0:01:30]} 31. Rb2 {[%clk 0:01:22]}  Rxb6 {[%clk 0:01:30]} 32. Rc2 {[%clk 0:01:23]}  Rb8 {[%clk 0:01:19]} 33. Rc7 {[%clk 0:01:19]}  Ra8 {[%clk 0:01:16]} 34. Kf1 {[%clk 0:01:14]}  Na5 {[%clk 0:01:16]} 35. Nd4 {[%clk 0:01:11]}  Nc4 {[%clk 0:01:16]} 36. Nb5 {[%clk 0:01:11]}  Nxe5 {[%clk 0:01:14]} 37. Ke2 {[%clk 0:01:10]}  Rb8 {[%clk 0:01:14]} 38. Nd6 {[%clk 0:01:03]}  Rb6 {[%clk 0:01:11]} 39. f4 {[%clk 0:00:51]}  Rxd6 {[%clk 0:01:11]} 40. fxe5 {[%clk 0:00:51]}  Rb6 {[%clk 0:01:10]} 41. Ra7 {[%clk 0:00:49]}  Rb2+ {[%clk 0:01:10]} 42. Kf1 {[%clk 0:00:48]}  Rb3 {[%clk 0:01:04]} 43. Rxa4 {[%clk 0:00:48]}  Re3 {[%clk 0:01:04]} 44. Ra8+ {[%clk 0:00:40]}  Kh7 {[%clk 0:01:04]} 45. a4 {[%clk 0:00:40]}  Rxe5 {[%clk 0:01:04]} 46. a5 {[%clk 0:00:41]}  Re3 {[%clk 0:01:04]} 47. a6 {[%clk 0:00:38]}  Ra3 {[%clk 0:01:04]} 48. Kf2 {[%clk 0:00:37]}  Kg6 {[%clk 0:01:03]} 49. a7 {[%clk 0:00:35]}  Kf6 {[%clk 0:01:03]} 50. Ke2 {[%clk 0:00:30]}  Ke5 {[%clk 0:01:03]} 51. Kd2 {[%clk 0:00:30]}  Kd4 {[%clk 0:01:04]} 52. Ke2 {[%clk 0:00:27]}  e5 {[%clk 0:01:04]} 53. g4 {[%clk 0:00:24]}  Ra2+ {[%clk 0:01:04]} 54. Kd1 {[%clk 0:00:17]}  e4 {[%clk 0:01:04]} 55. h4 {[%clk 0:00:16]}  e3 {[%clk 0:01:04]} 56. g5 {[%clk 0:00:11]}  Kd3 {[%clk 0:01:04]} 0-1


[Site "https://www.chess.com"]

[Event "Titled Tuesday Blitz February 14 Late 2023"]
[White "Indjic, Aleksandar"]
[Black "Popilski, Gil"]
[WhiteFideId "911925"]
[BlackFideId "2809060"]
[WhiteElo "2618"]
[BlackElo "2443"]
[Result "1-0"]
[Round "02"]
[TimeControl "180+2"]
[Date "2023.02.14"]
[WhiteClock "0:00:19"]
[BlackClock "0:00:04"]

1. d4 {[%clk 0:03:00]}  Nf6 {[%clk 0:02:59]} 2. c4 {[%clk 0:02:57]}  e6 {[%clk 0:02:58]} 3. Nc3 {[%clk 0:02:57]}  Bb4 {[%clk 0:02:58]} 4. Qc2 {[%clk 0:02:58]}  O-O {[%clk 0:02:55]} 5. Nf3 {[%clk 0:02:57]}  d6 {[%clk 0:02:50]} 6. Bg5 {[%clk 0:02:55]}  h6 {[%clk 0:02:48]} 7. Bh4 {[%clk 0:02:53]}  Nbd7 {[%clk 0:02:47]} 8. e3 {[%clk 0:02:53]}  c5 {[%clk 0:02:45]} 9. Bd3 {[%clk 0:02:51]}  Qa5 {[%clk 0:02:41]} 10. O-O {[%clk 0:02:48]}  cxd4 {[%clk 0:02:31]} 11. exd4 {[%clk 0:02:49]}  Bxc3 {[%clk 0:02:31]} 12. bxc3 {[%clk 0:02:48]}  b6 {[%clk 0:02:29]} 13. Nd2 {[%clk 0:02:45]}  Ba6 {[%clk 0:02:27]} 14. Bg3 {[%clk 0:02:31]}  d5 {[%clk 0:02:14]} 15. Bd6 {[%clk 0:01:57]}  dxc4 {[%clk 0:02:04]} 16. Bxc4 {[%clk 0:01:56]}  Bxc4 {[%clk 0:01:38]} 17. Nxc4 {[%clk 0:01:55]}  Qa6 {[%clk 0:01:37]} 18. Bxf8 {[%clk 0:01:54]}  Qxc4 {[%clk 0:01:36]} 19. Ba3 {[%clk 0:01:53]}  Nd5 {[%clk 0:01:33]} 20. Bb2 {[%clk 0:01:53]}  Rc8 {[%clk 0:01:28]} 21. Rfc1 {[%clk 0:01:44]}  Nf4 {[%clk 0:01:15]} 22. Rd1 {[%clk 0:01:20]}  Ne2+ {[%clk 0:01:04]} 23. Kh1 {[%clk 0:01:19]}  Nf6 {[%clk 0:01:04]} 24. Rd2 {[%clk 0:00:55]}  Nxc3 {[%clk 0:00:51]} 25. Rc1 {[%clk 0:00:42]}  Nfe4 {[%clk 0:00:18]} 26. Bxc3 {[%clk 0:00:41]}  Qxc3 {[%clk 0:00:10]} 27. Qxc3 {[%clk 0:00:41]}  Rxc3 {[%clk 0:00:11]} 28. Rxc3 {[%clk 0:00:42]}  Nxc3 {[%clk 0:00:11]} 29. Rc2 {[%clk 0:00:42]}  Nd5 {[%clk 0:00:07]} 30. Rc8+ {[%clk 0:00:42]}  Kh7 {[%clk 0:00:08]} 31. f3 {[%clk 0:00:42]}  Kg6 {[%clk 0:00:07]} 32. Kg1 {[%clk 0:00:42]}  a5 {[%clk 0:00:08]} 33. Kf2 {[%clk 0:00:42]}  Kf6 {[%clk 0:00:08]} 34. g3 {[%clk 0:00:38]}  b5 {[%clk 0:00:07]} 35. Rc5 {[%clk 0:00:36]}  Nb4 {[%clk 0:00:07]} 36. Rxb5 {[%clk 0:00:24]}  Nxa2 {[%clk 0:00:07]} 37. Rxa5 {[%clk 0:00:23]}  Nc3 {[%clk 0:00:08]} 38. Ke3 {[%clk 0:00:21]}  Nd5+ {[%clk 0:00:08]} 39. Kd3 {[%clk 0:00:22]}  g6 {[%clk 0:00:06]} 40. h4 {[%clk 0:00:21]}  h5 {[%clk 0:00:06]} 41. g4 {[%clk 0:00:22]}  hxg4 {[%clk 0:00:05]} 42. fxg4 {[%clk 0:00:23]}  Nf4+ {[%clk 0:00:05]} 43. Ke4 {[%clk 0:00:22]}  Ne2 {[%clk 0:00:05]} 44. h5 {[%clk 0:00:21]}  gxh5 {[%clk 0:00:06]} 45. gxh5 {[%clk 0:00:21]}  Ng3+ {[%clk 0:00:06]} 46. Kf4 {[%clk 0:00:22]}  Ne2+ {[%clk 0:00:06]} 47. Ke3 {[%clk 0:00:22]}  Ng3 {[%clk 0:00:06]} 48. Kd3 {[%clk 0:00:19]}  Kg7 {[%clk 0:00:06]} 49. Rg5+ {[%clk 0:00:18]}  Kh6 {[%clk 0:00:04]} 50. Rxg3 {[%clk 0:00:19]} 1-0


[Site "https://www.chess.com"]

[Event "Titled Tuesday Blitz February 14 Late 2023"]
[White "Klose, Eli"]
[Black "Perez Ponsa, Federico"]
[WhiteFideId "16242955"]
[BlackFideId "117927"]
[WhiteElo "1519"]
[BlackElo "2532"]
[Result "0-1"]
[Round "02"]
[TimeControl "180+2"]
[Date "2023.02.14"]
[WhiteClock "0:00:05"]
[BlackClock "0:00:48"]

1. e4 {[%clk 0:02:57]}  c5 {[%clk 0:02:54]} 2. Nc3 {[%clk 0:02:57]}  Nc6 {[%clk 0:02:53]} 3. g3 {[%clk 0:02:58]}  g6 {[%clk 0:02:53]} 4. d3 {[%clk 0:02:58]}  Bg7 {[%clk 0:02:53]} 5. Bg2 {[%clk 0:02:59]}  d6 {[%clk 0:02:54]} 6. f4 {[%clk 0:02:57]}  e6 {[%clk 0:02:54]} 7. Nf3 {[%clk 0:02:57]}  Nge7 {[%clk 0:02:54]} 8. O-O {[%clk 0:02:57]}  O-O {[%clk 0:02:54]} 9. Be3 {[%clk 0:02:57]}  b6 {[%clk 0:02:55]} 10. Qd2 {[%clk 0:02:58]}  d5 {[%clk 0:02:53]} 11. exd5 {[%clk 0:02:57]}  exd5 {[%clk 0:02:52]} 12. Bf2 {[%clk 0:02:47]}  d4 {[%clk 0:02:47]} 13. Ne4 {[%clk 0:02:32]}  h6 {[%clk 0:02:46]} 14. Ne5 {[%clk 0:02:18]}  Bb7 {[%clk 0:02:20]} 15. Nxc6 {[%clk 0:02:04]}  Bxc6 {[%clk 0:02:17]} 16. Qd1 {[%clk 0:01:59]}  Nf5 {[%clk 0:02:10]} 17. Rb1 {[%clk 0:01:47]}  Re8 {[%clk 0:01:52]} 18. a3 {[%clk 0:01:37]}  Qd7 {[%clk 0:01:47]} 19. Re1 {[%clk 0:01:21]}  Ne3 {[%clk 0:01:28]} 20. Bxe3 {[%clk 0:01:10]}  dxe3 {[%clk 0:01:29]} 21. Qf3 {[%clk 0:01:02]}  Rac8 {[%clk 0:01:23]} 22. Qe2 {[%clk 0:00:54]}  Rcd8 {[%clk 0:01:02]} 23. Nc3 {[%clk 0:00:45]}  Bxg2 {[%clk 0:00:53]} 24. Qxg2 {[%clk 0:00:46]}  c4 {[%clk 0:00:54]} 25. Rbd1 {[%clk 0:00:39]}  Bxc3 {[%clk 0:00:54]} 26. bxc3 {[%clk 0:00:38]}  Qa4 {[%clk 0:00:54]} 27. d4 {[%clk 0:00:19]}  Qxa3 {[%clk 0:00:54]} 28. d5 {[%clk 0:00:13]}  Qxc3 {[%clk 0:00:53]} 29. d6 {[%clk 0:00:13]}  Rxd6 {[%clk 0:00:53]} 30. Rxd6 {[%clk 0:00:09]}  Qxe1+ {[%clk 0:00:53]} 31. Qf1 {[%clk 0:00:10]}  Qb4 {[%clk 0:00:48]} 32. Rd7 {[%clk 0:00:05]}  e2 {[%clk 0:00:48]} 0-1


[Site "https://www.chess.com"]